Cogmind - Beta 13 --- EXPLORER MODE // 2024.06.03 @ 15:17:59 Player: arsenier Result: Destroyed by G-50 Soldier with Heavy Laser Performance ------------- Evolutions (4) 2000 Regions Visited (11) 2200 Robots Destroyed (55) 275 Value Destroyed (1838) 1838 Prototype IDs (12) 240 Alien Tech Used (0) 0 Bonus (1120) 1120 TOTAL SCORE: 7673 Bonus ------- Follower Combat Kills 620 Entered DSFs 500 Cogmind --------- Core Integrity 0/850 Matter 42/300 Energy 85/100 System Corruption 13% Temperature Danger (442) Movement Core (50) Location -6/Factory Parts ------- > --- POWER (2) -------- (None) > --- PROPULSION (4) --- (None) > --- UTILITY (8) ------ (None) > --- WEAPON (2) ------- (None) > --- INVENTORY (5) ---- Micro Nuclear Core Biomechanical Wings Authchip [Propulsion] Proton Missile Launcher Katana Peak State ------------ > --- POWER ------------ Angular Momentum Engine Light Fission Core > --- PROPULSION ------- Titanium Leg Improved Carbon-fiber Leg Improved Titanium Leg Biomechanical Wings > --- UTILITY ---------- Cooling System Improved Target Analyzer Hardened Heavy Armor Plating Layered Medium Armor Plating Layered Medium Armor Plating System Shield Recalibrator > --- WEAPON ----------- Plasma Cannon Plasma Cannon > --- INVENTORY -------- Micro Nuclear Core Flexi-carbon Leg Authchip [Propulsion] Proton Missile Launcher Katana [Rating: 69] Favorites ----------- Power Light Nuclear Core Engine Deuterium Engine Power Core Light Nuclear Core Propulsion Aluminum Leg Leg Aluminum Leg Flight Unit Biomechanical Wings Utility Structural Scanner Device Structural Scanner Storage High-capacity Storage Unit Processor Targeting Computer Hackware System Shield Protection Reactive Plating Weapon Heavy Particle Cannon Energy Gun Beam Rifle Energy Cannon Heavy Particle Cannon Ballistic Gun Assault Rifle Slashing Weapon Mining Claw Build | -11 -10 -10 -10 -9 -8 -8 -7 -7 -6 -6 -6 ------- Run | Yrd Mat Min Exi Min Mat Sto Fac DSF Fac Was Fac Slots Evolved 9 | . 1 . . . 4 . 2 . 2 . . Power 1 | . . . . . . . 1 . . . . Propulsion 2 | . . . . . 2 . . . . . . Utility 6 | . 1 . . . 2 . 1 . 2 . . Weapon . | . . . . . . . . . . . . Parts Attached 83 | 8 4 5 . 5 10 20 1 8 4 2 16 Power 16 | 2 . 1 . . 2 2 1 4 . 1 3 Engine 10 | 2 . . . . 2 1 1 3 . . 1 Core 6 | . . 1 . . . 1 . 1 . 1 2 Reactor . | . . . . . . . . . . . . Propulsion 20 | 2 1 2 . 1 3 5 . . . . 6 Treads . | . . . . . . . . . . . . Leg 19 | 2 1 2 . 1 3 5 . . . . 5 Wheel . | . . . . . . . . . . . . Hover . | . . . . . . . . . . . . Flight 1 | . . . . . . . . . . . 1 Utility 22 | 2 1 . . 3 2 3 . 2 3 1 5 Device 10 | 1 . . . 1 1 2 . 2 1 1 1 Storage 3 | . 1 . . 2 . . . . . . . Processor 2 | 1 . . . . . . . . . . 1 Hackware 1 | . . . . . . . . . 1 . . Protection 6 | . . . . . 1 1 . . 1 . 3 Artifact . | . . . . . . . . . . . . Weapon 25 | 2 2 2 . 1 3 10 . 2 1 . 2 Energy Gun 3 | . . 2 . . 1 . . . . . . Energy Cannon 13 | . . . . . 2 6 . 2 1 . 2 Ballistic Gun 4 | 2 2 . . . . . . . . . . Ballistic Cannon . | . . . . . . . . . . . . Launcher . | . . . . . . . . . . . . Special Weapon . | . . . . . . . . . . . . Impact Weapon . | . . . . . . . . . . . . Slashing Weapon 5 | . . . . 1 . 4 . . . . . Piercing Weapon . | . . . . . . . . . . . . Special Melee Weapon . | . . . . . . . . . . . . Unidentified Prototypes 2 | . . . . . . 1 . . . . 1 Parts Lost 9 | . . . . . 1 1 . . . 5 2 Power 2 | . . . . . 1 . . . . 1 . Propulsion 4 | . . . . . . 1 . . . 3 . Utility 2 | . . . . . . . . . . 1 1 Weapon 1 | . . . . . . . . . . . 1 Highest Loss Streak 3 | . . . . . 1 1 . . . 3 2 To Critical Strikes . | . . . . . . . . . . . . Average Slot Usage (%) 96 | . 99 100 100 100 94 98 92 99 97 62 74 Engine 5 | . 12 3 . . 6 7 14 11 12 5 4 Core 4 | . . 8 12 12 1 . . 2 . 1 5 Leg 27 | . 25 25 25 25 33 31 28 28 25 15 21 Device 20 | . 12 12 12 22 22 26 28 35 33 17 7 Storage 9 | . 12 12 12 12 8 8 7 7 6 3 . Processor 4 | . 12 12 12 2 . . . . . . 3 Protection 3 | . . . . . 5 6 . . 6 2 13 Energy Gun 8 | . . 20 25 21 4 . . . . . . Energy Cannon 6 | . . . . . 11 13 14 14 12 7 10 Ballistic Gun 2 | . 24 4 . . . . . . . . . Slashing Weapon 1 | . . . . 3 . 2 . . . . . Naked Turns 7 | . . . . . . . . . . . 7 Heaviest Build 111 | 10 20 22 22 52 71 75 70 92 111 105 73 Greatest Support 80 | 20 20 20 20 20 47 80 80 80 80 80 75 Greatest Overweight (x) 23 | . . 1 1 2 23 2 1 1 1 1 23 Average Overweight (x) . | . . . 1 1 1 . . . 1 . . Largest Inventory Capacity 25 | 5 10 10 10 25 20 20 20 20 20 20 5 Average Capacity 14 | 5 10 10 10 12 20 20 20 20 20 14 5 Most Carried 20 | 2 7 10 10 11 15 20 19 20 20 20 5 Average Carried 12 | . 3 9 9 10 12 19 19 19 19 14 4 Final Capacity 20 | 5 10 10 10 20 20 20 20 20 20 5 5 Final Carried 20 | 2 7 10 10 11 15 20 19 20 20 5 5 Class Distribution -------------------- 43% | Hacker-Mutant 39% | Scavenger-Mutant 17% | Commander-Mutant Dominant Class ---------------- Hacker-Mutant | -10/Materials Scavenger-Mutant | -10/Mines Scavenger-Mutant | -10/Exiles Scavenger-Mutant | -9/Mines Scavenger-Mutant | -8/Materials Hacker-Mutant | -8/Storage Hacker-Mutant | -7/Factory Commander-Mutant | -7/DSF Commander-Mutant | -6/Factory Hacker-Mutant | -6/Waste Hacker-Mutant | -6/Factory Resources | -11 -10 -10 -10 -9 -8 -8 -7 -7 -6 -6 -6 ----------- Run | Yrd Mat Min Exi Min Mat Sto Fac DSF Fac Was Fac Matter Collected 1134 | 168 268 147 . 50 100 237 . . 60 80 24 Remotely . | . . . . . . . . . . . . Salvage Created 2498 | . 261 207 . 89 530 802 . . 73 491 45 Parts 136 | . 22 7 . 5 28 60 . . 4 6 4 Haulers Intercepted 1 | . . . . . 1 . . . . . . Recyclers Shooed 1 | . 1 . . . . . . . . . . Parts Field Recycled . | . . . . . . . . . . . . Retrieved Matter . | . . . . . . . . . . . . Parts Self-Destructed . | . . . . . . . . . . . . Prevented . | . . . . . . . . . . . . Kills | -11 -10 -10 -10 -9 -8 -8 -7 -7 -6 -6 -6 ------- Run | Yrd Mat Min Exi Min Mat Sto Fac DSF Fac Was Fac Combat Hostiles Destroyed 45 | . 8 4 . 2 11 15 . . 2 2 1 Melee 1 | . . . . . . 1 . . . . . Guns 16 | . 8 4 . 2 2 . . . . . . Cannons 23 | . . . . . 8 12 . . 2 1 . AOE 1 | . . . . . . . . . . . 1 Classes Destroyed 11 | . 5 1 . 1 2 1 . . . 1 . Worker 2 | . 1 . . . . . . . . . 1 Builder 2 | . 1 . . . . 1 . . . . . Hauler 1 | . . . . . 1 . . . . . . Recycler 1 | . . . . 1 . . . . . . . Watcher 4 | . 1 . . . . 2 . . 1 . . Swarmer 12 | . 4 . . 2 2 2 . . 2 . . Grunt 12 | . 4 2 . . 4 1 . . . . 1 Brawler 1 | . . . . . 1 . . . . . . Duelist 1 | . . . . . . 1 . . . . . Sentry 17 | . . 2 . . 4 11 . . . . . Compactor 2 | . . . . . . . . . . 2 . Best Kill Streak 4 | . 3 2 . 2 3 4 . . 2 1 2 Combat Bots Only 3 | . 2 2 . 2 2 3 . . 2 1 1 Max Kills in Single Turn 2 | . 2 1 . 1 2 1 . . 1 1 2 Gunslinging 1 | . 1 . . . . . . . . . . Exploded 1 | . . . . . . . . . . . 1 Melee 1 | . . . . . . 1 . . . . . Uniques/NPCs Destroyed . | . . . . . . . . . . . . Combat | -11 -10 -10 -10 -9 -8 -8 -7 -7 -6 -6 -6 -------- Run | Yrd Mat Min Exi Min Mat Sto Fac DSF Fac Was Fac Hostile Shots Fired 341 | . 37 39 . 7 52 56 . 7 2 5 136 Missed 84 | . 13 5 . 4 16 14 . 1 . . 31 Damage Taken 2845 | . 178 289 . 26 315 325 . 197 11 113 1391 Core 1015 | . 39 56 . . 32 11 . 26 5 20 826 Absorbed by Shields . | . . . . . . . . . . . . Ignored by Resistances 1520 | . 120 178 . 17 207 295 . 109 15 79 500 Regen/Repaired (Parts) 111 | . 26 . . . . 85 . . . . . Core Remaining (%) 87 | 100 . . . 62 . 92 . 96 . . . Volleys Fired 138 | . 24 14 . 5 37 30 . 1 7 14 6 Largest 2 | . 2 2 . 2 2 2 . 2 2 2 1 Hottest 170 | . 40 76 . 121 150 150 . 150 170 170 80 Shots Fired 258 | . 48 28 . 10 63 59 . 2 14 27 7 Gun 121 | . 48 28 . 10 35 . . . . . . Cannon 137 | . . . . . 28 59 . 2 14 27 7 Launcher . | . . . . . . . . . . . . Special . | . . . . . . . . . . . . Kinetic 71 | . 48 23 . . . . . . . . . Thermal 187 | . . 5 . 10 63 59 . 2 14 27 7 Explosive . | . . . . . . . . . . . . Electromagnetic . | . . . . . . . . . . . . Robot Hit Streak 23 | . 13 13 . 6 19 23 . 3 10 17 6 Robot Miss Streak 2 | . 2 2 . 1 2 1 . . 1 1 . Penetration Max . | . . . . . . . . . . . . Secondary Targets 5 | . 3 2 . . . . . . . . . Max Gunslinging Chain 1 | . 1 1 . . . . . . . . . Shots Hit Robots 197 | . 35 22 . 11 48 41 . 2 10 25 3 Core Hits 78 | . 17 9 . 3 18 18 . 1 5 3 4 Critical Kills 3 | . . . . . . 2 . . . 1 . Critical Parts Destroyed 1 | . 1 . . . . . . . . . . Critical Strikes 7 | . 1 1 . . 2 2 . . . 1 . Burn 3 | . . 1 . . 2 . . . . . . Meltdown 3 | . . . . . . 2 . . . 1 . Destroy 1 | . 1 . . . . . . . . . . Melee Attacks 47 | . . . . 4 . 43 . . . . . Impact . | . . . . . . . . . . . . Slashing 47 | . . . . 4 . 43 . . . . . Piercing . | . . . . . . . . . . . . Sneak Attacks 3 | . . . . 3 . . . . . . . Combat Hostiles . | . . . . . . . . . . . . Follow-up Attacks . | . . . . . . . . . . . . Damage Inflicted 4727 | . 486 294 . 254 973 1050 . 50 279 751 590 Guns 1304 | . 486 294 . 101 423 . . . . . . Cannons 2630 | . . . . . 550 925 . 50 279 751 75 Explosions 515 | . . . . . . . . . . . 515 Melee 269 | . . . . 149 . 120 . . . . . Ramming 9 | . . . . 4 . 5 . . . . . Kinetic 722 | . 486 236 . . . . . . . . . Thermal 3727 | . . 58 . 101 973 925 . 50 279 751 590 Explosive . | . . . . . . . . . . . . Electromagnetic . | . . . . . . . . . . . . Impact . | . . . . . . . . . . . . Slashing 269 | . . . . 149 . 120 . . . . . Piercing . | . . . . . . . . . . . . Highest Corruption 13 | . . . . . 1 1 . . . 9 13 Average Corruption 2 | . . . . . 1 1 . . . 5 10 Corruption Purged . | . . . . . . . . . . . . Corruption Blocked . | . . . . . . . . . . . . Effects 38 | . . . . . 2 16 . . . 7 13 Message Errors 4 | . . . . . . 4 . . . . . Matter Fused 11 | . . . . . . 5 . . . 2 4 Heat Flow Errors 9 | . . . . . . 3 . . . 3 3 Energy Discharges 6 | . . . . . . 3 . . . 1 2 Parts Rejected 1 | . . . . . . . . . . . 1 Data Loss (minor) 2 | . . . . . 1 . . . . . 1 Data Loss (major) 1 | . . . . . . 1 . . . . . Misfires 1 | . . . . . . . . . . . 1 Alerts 2 | . . . . . 1 . . . . 1 . Misdirections 1 | . . . . . . . . . . . 1 Overload Shots . | . . . . . . . . . . . . Overflow Damage 25 | . . . . 18 . . . . 3 . 4 Projectiles 3 | . . . . . . . . . 3 . . Explosions 4 | . . . . . . . . . . . 4 Melee 18 | . . . . 18 . . . . . . . Knockbacks . | . . . . . . . . . . . . Impact . | . . . . . . . . . . . . Kinetic . | . . . . . . . . . . . . Secondary . | . . . . . . . . . . . . Self-Inflicted Damage 129 | . . . . . . . . . . . 129 Shots 3 | . . . . . . . . . . . 3 Rammed . | . . . . . . . . . . . . Targets Rammed 3 | . . . . 2 . 1 . . . . . Kicked 3 | . . . . 2 . 1 . . . . . Crushed . | . . . . . . . . . . . . Highest Temperature 638 | . 2 129 . 66 84 255 . . 12 332 638 Average Temperature 223 | . 1 46 . 30 31 79 . . 5 98 348 Received Heat Transfer 1110 | . 63 177 . . 261 207 . 9 . . 393 Effects 70 | . . . . . . . . . . 3 67 Shutdowns 23 | . . . . . . . . . . 1 22 Energy Bleed 10 | . . . . . . . . . . . 10 Interference 8 | . . . . . . . . . . 2 6 Matter Decay 5 | . . . . . . . . . . . 5 Short Circuit 5 | . . . . . . . . . . . 5 Damage (minor) 8 | . . . . . . . . . . . 8 Damage (major) 7 | . . . . . . . . . . . 7 Damage (core) 4 | . . . . . . . . . . . 4 Siege Activations . | . . . . . . . . . . . . Robots Corrupted . | . . . . . . . . . . . . Combat Hostiles . | . . . . . . . . . . . . Parts Fried . | . . . . . . . . . . . . Impact Corruptions . | . . . . . . . . . . . . Robots Melted 4 | . . . . . 1 2 . . . 1 . Combat Hostiles 4 | . . . . . 1 2 . . . 1 . Parts Melted 19 | . . 1 . . 4 9 . . 3 2 . Heat Transferred 6222 | . . 222 . 259 1998 1369 . 74 500 1300 500 Parts Sabotaged . | . . . . . . . . . . . . Parts Stolen . | . . . . . . . . . . . . Parts Stripped . | . . . . . . . . . . . . Power Chain Reactions . | . . . . . . . . . . . . Alert | -11 -10 -10 -10 -9 -8 -8 -7 -7 -6 -6 -6 ------- Run | Yrd Mat Min Exi Min Mat Sto Fac DSF Fac Was Fac Peak Influence 309 | . 160 106 . 82 309 238 3 183 97 15 133 Initial 70 | . . 1 . . 15 26 3 . 70 10 7 Average 50 | . 67 32 . 37 84 54 3 107 61 5 28 Maximum Alert Level 1 | . . . . . 1 1 . . . . . Low Security (%) 96 | 100 100 100 . 100 91 92 100 100 100 100 100 Level 1 3 | . . . . . 8 7 . . . . . Level 2 . | . . . . . . . . . . . . Level 3 . | . . . . . . . . . . . . Level 4 . | . . . . . . . . . . . . Level 5 . | . . . . . . . . . . . . High Security . | . . . . . . . . . . . . Max Security . | . . . . . . . . . . . . Sterilizations 1 | . . . . . . . . 1 . . . Squads Dispatched 5 | . . . . . 2 . . 2 . . 1 Investigation 2 | . . . . . 1 . . . . . 1 Extermination . | . . . . . . . . . . . . Reinforcement 3 | . . . . . 1 . . 2 . . . Assault . | . . . . . . . . . . . . Garrison . | . . . . . . . . . . . . Intercept . | . . . . . . . . . . . . Searches Triggered . | . . . . . . . . . . . . Construction Impeded . | . . . . . . . . . . . . Haulers Reinforced . | . . . . . . . . . . . . Active Scanning Responses . | . . . . . . . . . . . . Cargo Convoy Interrupts . | . . . . . . . . . . . . Stealth | -11 -10 -10 -10 -9 -8 -8 -7 -7 -6 -6 -6 --------- Run | Yrd Mat Min Exi Min Mat Sto Fac DSF Fac Was Fac Distress Signals 5 | . 1 . . . 3 1 . . . . . Communications Jammed . | . . . . . . . . . . . . Distress Signals . | . . . . . . . . . . . . Times Spotted 82 | . 12 6 . 8 18 18 . 6 4 6 4 Peak Tracking Total 4 | . 3 2 . 2 4 4 . 3 2 4 4 Tactical Retreats 4 | . . . . . . 2 . . . 1 1 Traps | -11 -10 -10 -10 -9 -8 -8 -7 -7 -6 -6 -6 ------- Run | Yrd Mat Min Exi Min Mat Sto Fac DSF Fac Was Fac Traps Triggered 8 | . 4 . . . . 3 . . 1 . . Indirectly . | . . . . . . . . . . . . Trap Hack Attempts . | . . . . . . . . . . . . Triggered . | . . . . . . . . . . . . Disarmed . | . . . . . . . . . . . . Reprogrammed . | . . . . . . . . . . . . Reused . | . . . . . . . . . . . . Traps Extracted . | . . . . . . . . . . . . Installed . | . . . . . . . . . . . . Triggered . | . . . . . . . . . . . . Machines | -11 -10 -10 -10 -9 -8 -8 -7 -7 -6 -6 -6 ---------- Run | Yrd Mat Min Exi Min Mat Sto Fac DSF Fac Was Fac Machines Disabled 13 | . . . . . . 8 . . 1 . 4 Max in Single Turn 4 | . . . . . . 1 . . 1 . 4 Machines Repaired . | . . . . . . . . . . . . Machines Dismantled . | . . . . . . . . . . . . Machines Sabotaged . | . . . . . . . . . . . . Overloaded Fab Kills . | . . . . . . . . . . . . Hacking | -11 -10 -10 -10 -9 -8 -8 -7 -7 -6 -6 -6 --------- Run | Yrd Mat Min Exi Min Mat Sto Fac DSF Fac Was Fac Machines Accessed 32 | . 5 . 4 1 5 12 1 . 1 . 3 Terminals 24 | . 4 . . 1 4 11 1 . 1 . 2 Fabricators 1 | . . . . . . . . . . . 1 Repair Stations 2 | . 1 . . . . 1 . . . . . Recycling Units 1 | . . . . . 1 . . . . . . Scanalyzers . | . . . . . . . . . . . . Garrison Access . | . . . . . . . . . . . . Total Hacks 72 | . 12 . 4 4 14 24 2 . 2 . 10 Successful 36 | . 8 . 4 2 3 14 1 . 1 . 3 Failed 36 | . 4 . . 2 11 10 1 . 1 . 7 Catastrophic 3 | . 1 . . . 2 . . . . . . Database Lockouts . | . . . . . . . . . . . . Manual 23 | . 7 . . 3 7 2 . . 1 . 3 Terminals 62 | . 10 . . 4 13 22 2 . 2 . 9 Fabricators 1 | . . . . . . . . . . . 1 Repair Stations 4 | . 2 . . . . 2 . . . . . Recycling Units 1 | . . . . . 1 . . . . . . Scanalyzers . | . . . . . . . . . . . . Garrison Access . | . . . . . . . . . . . . Terminal Hacks 30 | . 6 . 4 2 2 12 1 . 1 . 2 Record 6 | . . . 4 . . 1 . . 1 . . Part Schematic 1 | . . . . 1 . . . . . . . Robot Analysis 1 | . . . . . . 1 . . . . . Prototype ID Bank 6 | . 1 . . . 1 4 . . . . . Open Door 5 | . . . . . . 5 . . . . . Open DSF 1 | . . . . . . . 1 . . . . Branch Access Points 1 | . 1 . . . . . . . . . . Emergency Access Points 1 | . . . . . . . . . . . 1 Terminal Index 1 | . . . . . 1 . . . . . . Alert Level 1 | . . . . . . . . . . . 1 Unreport Threat 3 | . 3 . . . . . . . . . . Zone Layout 3 | . 1 . . 1 . 1 . . . . . Fabricator Hacks . | . . . . . . . . . . . . Repair Station Hacks 4 | . 2 . . . . 2 . . . . . Scan Component 2 | . 1 . . . . 1 . . . . . Repair 2 | . 1 . . . . 1 . . . . . Recycling Unit Hacks . | . . . . . . . . . . . . Scanalyzer . | . . . . . . . . . . . . Garrison Access Hacks . | . . . . . . . . . . . . Unauthorized Hacks 2 | . . . . . 1 . . . . . 1 Terminals . | . . . . . . . . . . . . Fabricators 1 | . . . . . . . . . . . 1 Overload 1 | . . . . . . . . . . . 1 Repair Stations . | . . . . . . . . . . . . Recycling Units 1 | . . . . . 1 . . . . . . Reject 1 | . . . . . 1 . . . . . . Scanalyzers . | . . . . . . . . . . . . Garrison Access . | . . . . . . . . . . . . Data Cores Recovered 1 | . . . . . . . . . 1 . . Used . | . . . . . . . . . . . . Hacking Detections 21 | . 3 . . 1 4 9 1 . 1 . 2 Full Trace Events 2 | . 1 . . . 1 . . . . . . Feedback Events 1 | . . . . . 1 . . . . . . Corruption 1 | . . . . . 1 . . . . . . Feedback Blocked . | . . . . . . . . . . . . Robot Schematics Acquired . | . . . . . . . . . . . . Robots Built . | . . . . . . . . . . . . Authchips . | . . . . . . . . . . . . Time . | . . . . . . . . . . . . Total Robot Build Rating . | . . . . . . . . . . . . Part Schematics Acquired 1 | . . . . 1 . . . . . . . Parts Built . | . . . . . . . . . . . . Authchips . | . . . . . . . . . . . . Time . | . . . . . . . . . . . . Total Part Build Rating . | . . . . . . . . . . . . Parts Repaired 2 | . 1 . . . . 1 . . . . . Time 64 | . 26 . . . . 38 . . . . . Parts Recycled . | . . . . . . . . . . . . Recycled Matter . | . . . . . . . . . . . . Retrieved Matter . | . . . . . . . . . . . . Retrieved Components . | . . . . . . . . . . . . Parts Scanalyzed . | . . . . . . . . . . . . Part Schematics Acquired . | . . . . . . . . . . . . Parts Damaged . | . . . . . . . . . . . . Bothacking | -11 -10 -10 -10 -9 -8 -8 -7 -7 -6 -6 -6 ------------ Run | Yrd Mat Min Exi Min Mat Sto Fac DSF Fac Was Fac Used RIF Installer . | . . . . . . . . . . . . Robots Hacked . | . . . . . . . . . . . . Non-combat . | . . . . . . . . . . . . Combat . | . . . . . . . . . . . . Robot Hacks Applied . | . . . . . . . . . . . . Relay Couplers Released . | . . . . . . . . . . . . Fabnet Peak Effective % . | . . . . . . . . . . . . Robots Rewired . | . . . . . . . . . . . . Allies Hacked . | . . . . . . . . . . . . Hacks Repelled . | . . . . . . . . . . . . Allies | -11 -10 -10 -10 -9 -8 -8 -7 -7 -6 -6 -6 -------- Run | Yrd Mat Min Exi Min Mat Sto Fac DSF Fac Was Fac Total Allies 15 | . . 5 . . . 10 . . . . . Largest Group 10 | . . 5 5 3 2 10 9 9 5 1 . Highest-Rated Group 173 | . . 90 90 40 32 173 157 157 93 16 . Highest-Rated Ally 31 | . . 31 31 16 16 29 29 29 29 16 . Total Orders . | . . . . . . . . . . . . Ally Attacks 161 | . . 7 . 23 12 8 . 76 16 19 . Total Damage 2046 | . . 78 . 320 169 89 . 1045 116 229 . Kills 24 | . . 2 . 6 2 2 . 10 2 . . Allies Corrupted 1 | . . . . . . . . . . 1 . Allies Melted . | . . . . . . . . . . . . Intel | -11 -10 -10 -10 -9 -8 -8 -7 -7 -6 -6 -6 ------- Run | Yrd Mat Min Exi Min Mat Sto Fac DSF Fac Was Fac Robot Analysis Total 1 | . . . . . . 1 . . . . . Derelict Logs Recovered 3 | . . 2 . 1 . . . . . . . Drone Launches 4 | . . . . . . . . 2 2 . . Drone Recoveries . | . . . . . . . . . . . . Exploration | -11 -10 -10 -10 -9 -8 -8 -7 -7 -6 -6 -6 ------------- Run | Yrd Mat Min Exi Min Mat Sto Fac DSF Fac Was Fac Turns Passed 8400 | 75 709 1159 920 1131 635 2381 19 191 551 256 373 Spaces Moved 4233 | 53 497 589 484 539 244 1008 14 82 263 216 244 Core 181 | 2 . . . . 1 . . . . 135 43 Treads . | . . . . . . . . . . . . Legs 4052 | 51 497 589 484 539 243 1008 14 82 263 81 201 Wheels . | . . . . . . . . . . . . Hover . | . . . . . . . . . . . . Flight . | . . . . . . . . . . . . Fastest Speed 50 | 50 120 120 190 190 190 130 130 130 200 50 50 Average Speed 175 | 117 120 188 190 201 194 192 135 176 200 95 137 Slowest Speed 1200 | 120 120 190 190 260 1200 263 200 200 200 200 1200 Overloaded Moves . | . . . . . . . . . . . . Propulsion Burnouts . | . . . . . . . . . . . . Robots Hopped . | . . . . . . . . . . . . Cave-ins Triggered . | . . . . . . . . . . . . Exploration Rate (%) 56 | 4 68 100 92 86 19 95 1 97 10 96 8 Regions Visited 11 Branch Regions 4 Pre-discovered Areas . | . . . . . . . . . . . . Known Exits Taken 8 | 1 1 1 1 1 1 1 1 . . . . Unknown Exits Taken . | . . . . . . . . . . . . Scrap Searched 3 | . . 1 . 2 . . . . . . . Spaces Dug 5 | . . . . . . 5 . . . . . Terrain Destroyed 46 | . . . . . 5 16 . . . 1 24 Melee 3 | . . . . . . 3 . . . . . Projectile 19 | . . . . . 5 13 . . . 1 . AOE 24 | . . . . . . . . . . . 24 Terrain Rammed . | . . . . . . . . . . . . Walls Destroyed . | . . . . . . . . . . . . Machines Disabled . | . . . . . . . . . . . . Actions | -11 -10 -10 -10 -9 -8 -8 -7 -7 -6 -6 -6 --------- Run | Yrd Mat Min Exi Min Mat Sto Fac DSF Fac Was Fac Total 4857 | 62 560 612 485 563 339 1307 14 132 275 239 269 Wait 276 | . 30 . . 4 42 174 . 21 . 5 . Move 4223 | 52 496 588 483 538 243 1007 13 81 263 215 244 Hop . | . . . . . . . . . . . . Pick Up 38 | 2 6 2 1 3 4 10 . 9 . . 1 Fast Attach 32 | 6 3 2 . . 4 3 . 2 1 . 11 Attach 16 | 1 1 . . . 3 1 1 2 2 2 3 Detach 8 | . . 1 . . 2 2 . . 1 1 1 Swap 35 | 1 . 3 . 5 3 16 . 4 1 . 2 Drop 33 | . . 2 1 2 1 13 . 12 . 2 . Fire 138 | . 24 14 . 5 37 30 . 1 7 14 6 Melee 47 | . . . . 4 . 43 . . . . . Ram 1 | . . . . . . . . . . . 1 Kick 3 | . . . . 2 . 1 . . . . . Crush . | . . . . . . . . . . . . Escape Stasis 5 | . . . . . . 5 . . . . . Rewire 2 | . . . . . . 2 . . . . . Trap . | . . . . . . . . . . . . Miscellaneous . | . . . . . . . . . . . . Route ------- -11/Scrapyard -10/Materials (discovered 4 exits: *Mat / *Min x2 / Sub) -10/Mines (discovered 4 exits: *Mat x2 / *Exi / *Sub) -10/Exiles -9/Mines -8/Materials (discovered 2 exits: Fac / *Sto) -8/Storage -7/Factory -7/DSF -6/Factory -6/Waste -6/Factory (discovered 1 exit: *Low) History --------- Turn | Location | Event 25 | -11/Scrapyard | Identified exit to Materials 25 | -11/Scrapyard | Discovered exit to Materials (range 16) 76 | -11/Scrapyard | Entered Materials 76 | -10/Materials | Evolved 1 slot: Utility x1 102 | -10/Materials | Identified exit to Mines 276 | -10/Materials | Identified exit to Materials 276 | -10/Materials | Discovered exit to Materials (range 3) 281 | -10/Materials | Identified exit to Subcaves 281 | -10/Materials | Discovered exit to Subcaves (range 12) 306 | -10/Materials | Build established: Hacker-Mutant 416 | -10/Materials | Repaired Assault Rifle 785 | -10/Materials | Entered Mines 913 | -10/Mines | Deemed a non-threat by the Exiles lab entrance 913 | -10/Mines | Identified exit to Exiles 913 | -10/Mines | Discovered exit to Exiles (range 6) 1066 | -10/Mines | Learned Materials garrison access intel 1336 | -10/Mines | Assisted by bots powering up and referring to "LRC-V3" 1426 | -10/Mines | Build established: Scavenger-Mutant 1465 | -10/Mines | Discovered exit to Materials (range 10) 1615 | -10/Mines | Discovered exit to Materials (range 4) 1921 | -10/Mines | Discovered exit to Subcaves (range 6) 1944 | -10/Mines | Entered Exiles 1944 | -10/Exiles | Found Exiles lab abandoned 1944 | -10/Exiles | Accompanied by 5 allies 1974 | -10/Exiles | Led the pair of lost Derelicts to a safe place 2744 | -10/Exiles | Identified exit to Mines 2744 | -10/Exiles | Discovered exit to Mines (range 14) 2864 | -10/Exiles | Entered Mines 2864 | -9/Mines | Accompanied by 3 allies 3108 | -9/Mines | Received a Rocket Launcher from a helpful Derelict 3267 | -9/Mines | Learned location of 1 exit from Materials 3349 | -9/Mines | Identified exit to Materials 3349 | -9/Mines | Discovered exit to Materials (range 10) 3995 | -9/Mines | Entered Materials 3995 | -8/Materials | Accompanied by 2 allies 3995 | -8/Materials | Evolved 4 slots: Propulsion x2, Utility x2 3996 | -8/Materials | Identified exit to Storage 3997 | -8/Materials | Identified exit to Factory 3998 | -8/Materials | Loaded intel: 1 garrison access location 4630 | -8/Materials | Entered Storage 4700 | -8/Storage | Build established: Hacker-Mutant 5809 | -8/Storage | Discovered exit to Factory (range 12) 6218 | -8/Storage | Assisted by bots powering up and referring to "LRC-V3" 6442 | -8/Storage | Repaired Reactive Plating 6501 | -8/Storage | Build established: Commander-Mutant 7011 | -8/Storage | Entered Factory 7011 | -7/Factory | Accompanied by 9 allies 7011 | -7/Factory | Evolved 2 slots: Power x1, Utility x1 7020 | -7/Factory | Identified exit to DSF 7030 | -7/Factory | Entered DSF 7030 | -7/DSF | Accompanied by 9 allies 7060 | -7/DSF | Additional patrols routed to DSF 7157 | -7/DSF | Identified exit to Factory 7157 | -7/DSF | Discovered exit to Factory (range 16) 7160 | -7/DSF | Sterilization system engaged 7176 | -7/DSF | Lost 4 allies 7180 | -7/DSF | Ambient heat levels rising (+10) 7195 | -7/DSF | Ambient heat levels rising (+10) 7210 | -7/DSF | Ambient heat levels rising (+10) 7221 | -7/DSF | Entered Factory 7221 | -6/Factory | Accompanied by 7 allies 7221 | -6/Factory | Evolved 2 slots: Utility x2 7508 | -6/Factory | Identified exit to Factory 7508 | -6/Factory | Discovered exit to Factory (range 7) 7772 | -6/Factory | Sucked down chute 7772 | -6/Factory | Entered Waste 7787 | -6/Waste | EMP discharged 7788 | -6/Waste | Lost 3 allies 7791 | -6/Waste | Spotted C-40 Crusher 7799 | -6/Waste | Destroyed C-40 Crusher 7828 | -6/Waste | Spotted C-40 Crusher 7847 | -6/Waste | Destroyed C-40 Crusher 7878 | -6/Waste | Spotted C-40 Crusher 7887 | -6/Waste | EMP discharged 7887 | -6/Waste | Spotted C-40 Crusher 7892 | -6/Waste | Crushed by Compactor (1 part destroyed, 2 dropped) 7895 | -6/Waste | Crushed by Compactor (1 part destroyed, 2 dropped) 7897 | -6/Waste | 4 allies followed down the chute 7904 | -6/Waste | Spotted C-40 Crusher 7912 | -6/Waste | 2 allies followed down the chute 7935 | -6/Waste | Lost 3 allies 7939 | -6/Waste | Crushed by Compactor (1 part destroyed, 1 dropped) 7959 | -6/Waste | Crushed by Compactor (1 part destroyed, 1 dropped) 7962 | -6/Waste | Crushed by Compactor (1 part destroyed, 2 dropped) 7965 | -6/Waste | Build established: Hacker-Mutant 7977 | -6/Waste | Spotted C-40 Crusher 7987 | -6/Waste | EMP discharged 7993 | -6/Waste | Lost 3 parts (1p2n) 8017 | -6/Waste | Identified exit to Factory 8017 | -6/Waste | Discovered exit to Factory (range 13) 8028 | -6/Waste | Entered Factory 8170 | -6/Factory | Identified exit to Lower Caves 8170 | -6/Factory | Discovered exit to Lower Caves (range 6) 8296 | -6/Factory | System corruption reached 10% 8348 | -6/Factory | Core integrity fell below 50% 8394 | -6/Factory | Released all parts (12) 8399 | -6/Factory | Core integrity fell below 20% 8401 | -6/Factory | Destroyed by G-50 Soldier with Heavy Laser Last Messages --------------- 08394_ Released Lyr. Medium Armor Plating. 08394_ Released Angular Momentum Engine. 08394_ Released Broken Imp. Carbon-fiber Leg. 08394_ Released Lgt. Fission Core. 08394_ Released Broken Titanium Leg. 08394_ Released Plasma Cannon. 08394_ Released Broken Imp. Titanium Leg. 08394_ Released Lyr. Medium Armor Plating. 08394_ Released Imp. Target Analyzer. 08394_ Released Broken Flexi-carbon Leg. 08395_ Overheating: Energy bleed (-16). 08395_ K-01 Serf cleans the Fusion Modulator. 08396_ Overheating: Matter decay (-13). 08398_ Fusion Modulator explodes. 08398_ Destroyed Carbon-fiber Leg. 08398_ Fusion Modulator explodes. 08398_ G-50 Soldier destroyed. 08398_ Fusion Modulator explodes. 08398_ K-01 Serf destroyed. 08400_ Overheating: Energy bleed (-18). Map ----- +----------------------------------------------------+ | ?????????????????????????????????????????????????? | | ?????????????????????????????????????????????????? | | ?????????????????????????????????????????????????? | | ?????????????????????????????????????????????????? | | ?????????????????????????????????????????????????? | | ?????????????????????????????????????????????????? | | ?????????????????????????????????????????????????? | | ?????????????????????????????????????????????????? | | ?????????????????????????????????????????????????? | | ?????????????????????????????????????????????????? | | ????????????????????????? ???????????????????????? | | ????????????????????????? ???????????????????????? | | ????????????????????????? ???????????????????????? | | ????????????????????????? ######?????????????????? | | ????????????????????????? ????? ??? ????????? | | ????????????????????????? ????? ??? ????????? | | ????????????????????????? ?????? ??? ????????? | | ????????????????????????# ?????? ??? ???? ???? | | ????????????????????????# ??????" "?" "??? #?? | | ????????????????????????# ??????" "?" "??? #?? | | ????????????????????????# ????? ? ?? #?? | | ????????????????????????# """ """ """ #?? | | ????????????????????????# ?? """ """ """ #? | | ???????????????????????? ?? """ """ """ ##/ | | ??????????????????????###/##### | | ??????????????????????# @ # """ """ """ | | ??????????????????????# # """ """ """ | | ??????????????????????# # """ """ """ | | ??????????????????????# = ; | | ??????????????????????# #?? | | ??????????????????????####; ;""## #?? | | ?????????????????????????# g g= ## #?? | | ????????????????????????#" ## #?? | | ????????????????????????#" ## #?? | | ????????????????????????# = ## #?? | | ????????????????????????# = "# #?? | | ????????????????????????# "# #?? | | ????????????????????????#" "# #?? | | ????????????????????????#" "# #?? | | ????????????????????????## "# ! #?? | | ?????????????????????????# ## #?? | | ?????????????????????????# ## ##+ | | ?????????????????????????# ## | | ?????????????????????????##############" | | ??????????????????????????????????????#" | | ?????????????????????????????????????? " | | ?????????????????????????????????????# "! | | ?????????????????????????????????????# "% | | ????????????????????????????????????##"" | | ????????????????????????????????????#" | +----------------------------------------------------+ Best States ------------- Heat Dissipation 78 Energy Generation 31 Energy Capacity 490 Matter Stores 300 Matter Capacity 300 Sight Range 16 Terrain Scan Density 10 Additional Mass Support 12 Armor Coverage 1050 Resistance: KI 55 Resistance: TH 35 Resistance: EX 35 Resistance: EM 35 Resistance: I 35 Resistance: S 35 Resistance: P 35 Evasion (%) 55 Targeting Accuracy 5 Target Analysis 6 Offensive Hacking 20 Defensive Hacking 10 Authchip Count 7 Item Schematics ----------------- Imp. Aluminum Leg | -9/Mines | Hacked Robot Schematics ------------------ None Fabricated ------------ Nothing Alien Tech Used ----------------- None Achievements -------------- None Challenges ------------ None Game ------ Seed DefenseFissionTendrils Manual? 0 Play Time 01:10:28 Cumulative 22.9 hours Start 2024.06.03 @ 02:31:47 End 2024.06.03 @ 15:17:59 Sessions 2 Manual Loads 0 Difficulty Explorer Special Mode None Game No. 9 Rogue 0 Adventurer 0 Explorer 9 Win Type - Total 1 Types 1/0/0/0/0/0/0/0/0 Lore% 31 Gallery% 29 Achievement% 29 Wizard Run 0 Options --------- Layout 0 ASCII 0 Keyboard 1 Movement Arrows Keybinds 0 Fullscreen 1 Font 18/SmallcapsGlow Map View 76x50 Zoom Use 0% Tactical HUD 1 Map Filters NONE Filters NONE Steam 1 RUN: 8c6df39c-55e8-43f4-a1ad-5731abff911f